[Event "7th Sharjah Masters 2024"]
[Site "Sharjah"]
[Date "2024.05.15"]
[Round "2.13"]
[White "Sarana, Alexey"]
[Black "Gurel, Ediz"]
[Result "1-0"]
[ECO "E46"]
[WhiteElo "2706"]
[BlackElo "2578"]
[Annotator "TA"]
[PlyCount "119"]
[EventDate "2024.05.13"]
[EventType "swiss"]
[EventCountry "UAE"]
[SourceTitle "playchess.com"]
[Source "ChessBase"]
[SourceQuality "1"]
[TimeControl "5400+30"]

{[%evp 45,119,40,34,14,60,56,66,67,75,64,75,60,66,48,81,85,83,82,91,85,95,100,114,119,115,66,70,70,68,69,77,75,112,114,131,112,157,162,143,149,185,170,206,202,366,364,454,418,448,435,438,419,1493,1243,29957,29970,29964,29966,29973,29976,29970,29971,29973,29974,29974,29975,29975,29976,29976,29977,29977,29977,29978,29978,29992,29974]} 1. d4 {[%emt 0:00:03]} Nf6 {[%emt 0:00:14]} 2. c4 {[%emt 0:00:06]} e6 {[%emt 0:00:07]} 3. Nc3 {[%emt 0:00:20]} Bb4 {[%emt 0:00:09]} 4. e3 {[%emt 0:00:19]} O-O {[%emt 0:00:18]} 5. Bd2 {[%emt 0:00:13]} d5 {[%emt 0:03:14]} 6. a3 {[%emt 0:00:54]} Be7 {[%emt 0:04:59]} 7. Nf3 {[%emt 0:00:19] E46: Nimzo-Indian: Rubinstein: 4 e3 0-0 5 Ne2 without early Bd3.} b6 {[%emt 0:06:28]} 8. cxd5 {[%emt 0:00:57]} exd5 {[%emt 0:00:35]} 9. g3 $5 {[%emt 0:00:09][%mdl 4] Exploring less charted territory.} c5 {[%emt 0:04:09]} 10. Bg2 {[%emt 0:00:51]} Nc6 {[%emt 0:03:18]} 11. O-O {[%emt 0:01:49]} Be6 $146 {[%emt 0:10:14]} ({Predecessor:} 11... Bb7 12. Re1 Re8 13. Rc1 Bf8 14. h4 h6 15. Ne2 c4 16. Nh2 b5 17. Nc3 a6 {1-0 Van Foreest,J (2707)-Nguyen,T (2618) EU-Cup 38th Durres 2023 (7.4)}) 12. Ne2 {[%emt 0:16:39]} Ne4 {[%emt 0:04:21]} 13. Bc3 {[%emt 0:06:13]} Qd7 {[%emt 0:05:49]} 14. Nf4 {[%emt 0:01:03]} Rfd8 {[%emt 0:04:26]} 15. dxc5 {[%emt 0:07:01]} Nxc3 {[%emt 0:09:06]} 16. bxc3 {[%emt 0:00:32]} bxc5 {[%emt 0:00:11]} 17. Qa4 {[%emt 0:02:23]} Bf6 {[%emt 0:02:46]} 18. Rac1 {[%emt 0:01:35]} Rac8 {[%emt 0:03:23]} 19. Rfd1 {[%emt 0:01:48]} Ne7 {[%emt 0:06:19]} 20. Qa5 {[%emt 0:10:04]} Bf5 {[%emt 0:09:40]} 21. Ne1 {[%emt 0:05:03]} d4 {[%emt 0:02:33]} 22. cxd4 {[%emt 0:06:54]} cxd4 {[%emt 0:00:04]} 23. e4 {[%emt 0:00:14]} Bg4 {[%emt 0:01:29]} 24. f3 {[%emt 0:05:49]} Be6 {[%emt 0:01:43]} (24... Rxc1 $11 25. Rxc1 Nc6) 25. Nxe6 $14 {[%emt 0:01:09]} Qxe6 {[%emt 0:00:48]} 26. f4 {[%emt 0:01:44]} g5 {[%emt 0:05:04]} 27. fxg5 {[%emt 0:08:41]} Bg7 {[%emt 0:00:05]} 28. Nd3 {[%emt 0:02:45]} (28. Qxa7 $6 Rxc1 29. Rxc1 d3 $11) 28... Ng6 {[%emt 0:01:47]} 29. Rc5 {[%emt 0:03:24]} Bf8 {[%emt 0:02:03]} 30. Rf5 {[%emt 0:01:45]} Qb3 {[%emt 0:00:15]} 31. Rff1 {[%emt 0:00:39]} Qxa3 {[%emt 0:01:36]} 32. Qf5 {[%emt 0:00:15]} Qb3 {[%emt 0:01:59]} 33. e5 {[%emt 0:02:35]} Bg7 {[%emt 0:01:09]} 34. Be4 {[%emt 0:03:09]} Qe6 {[%emt 0:02:42]} 35. Qxe6 {[%emt 0:03:05]} (35. Qf3 $16) 35... fxe6 $14 {[%emt 0:00:01]} 36. Bxg6 {[%emt 0:00:05]} hxg6 {[%emt 0:00:02]} 37. Ra1 $1 {[%emt 0:00:06]} Rc3 {[%emt 0:02:42] [#]} 38. Rfd1 $1 {[%emt 0:00:47]} Rd7 {[%emt 0:01:45]} 39. Ra6 {[%emt 0:00:35]} Re7 {[%emt 0:01:56]} 40. Rd2 {[%emt 0:02:50]} Kh7 {[%emt 0:00:20]} 41. Kg2 {[%emt 0:00:25]} Rb3 {[%emt 0:00:37]} 42. Ra5 {[%emt 0:01:19]} Rb6 {[%emt 0:00:33]} 43. Kf3 {[%emt 0:00:25]} Rf7+ {[%emt 0:00:30]} 44. Ke4 {[%emt 0:00:01]} Rb1 $2 {[%emt 0:00:29]} (44... a6 45. Rda2 (45. Kxd4 Rf5 $16) 45... Ra7) 45. Rda2 $18 {[%emt 0:01:13]} (45. Kxd4 Rd7+ 46. Ke4 Rb3 $16) 45... Rh1 {[%emt 0:00:28]} 46. Ra6 {[%emt 0:01:06]} (46. Kxd4 Rd7+ 47. Ke4 Kg8 $18) 46... Re7 {[%emt 0:00:29]} 47. Rxa7 {[%emt 0:02:07]} Rxa7 {[%emt 0:00:04]} 48. Rxa7 {[%emt 0:00:03]} Rxh2 {[%emt 0:00:09]} (48... Kg8 $142 49. Ra2 (49. Kxd4 Rxh2 50. Ra8+ Kf7 $14) 49... Bf8) 49. Nf4 $18 {[%emt 0:00:01]} (49. Kxd4 Kg8 $16) 49... Kh8 {[%emt 0:01:19]} 50. Nxg6+ {[%emt 0:00:37]} (50. Kxd4 Rh1 $16) 50... Kg8 {[%emt 0:00:03]} 51. Nf4 {[%emt 0:00:05]} (51. Kxd4 Rh5 $11) 51... Rh1 {[%emt 0:00:31]} 52. Nxe6 {[%emt 0:01:06]} (52. Kxd4 Rd1+ 53. Ke4 Re1+ 54. Kf3 Bxe5 $16) 52... Re1+ {[%emt 0:00:04]} 53. Kd5 {[%emt 0:00:04]} (53. Kxd4 Bxe5+ 54. Kd5 Bxg3 $11) 53... d3 {[%emt 0:01:21] [#]} 54. g6 $1 {[%emt 0:01:36]} (54. Nxg7 $2 {perishes.} d2 55. Nf5 d1=Q+ $19 (55... d1=B 56. g6 Bb3+ 57. Kd6 Rd1+ 58. Ke7 Kh8 59. e6 Bxe6 60. Kxe6 Re1+ 61. Kf6 Re8 62. Rh7+ Kg8 63. Nh6+ Kf8 64. Rh8#)) ({Not} 54. Rxg7+ Kh8 55. Rd7 d2 56. Rd8+ Kh7 $11) 54... Rxe5+ {[%emt 0:00:28]} 55. Kd6 {[%emt 0:00:01]} Rxe6+ {[%emt 0:00:26]} 56. Kxe6 {[%emt 0:00:01]} Bc3 {[%emt 0:00:14]} 57. Rd7 {[%emt 0:00:37]} d2 {[%emt 0:00:01]} 58. Kf5 {[%emt 0:00:06]} Bb4 {[%emt 0:01:08]} 59. g7 {[%emt 0:00:16]} Kh7 {[%emt 0:00:09]} 60. Ke4 {[%emt 0:04:29]} 1-0

[Event "7th Sharjah Masters 2024"]
[Site "Sharjah"]
[Date "2024.05.15"]
[Round "2.14"]
[White "Nesterov, Arseniy"]
[Black "Artemiev, Vladislav"]
[Result "1/2-1/2"]
[ECO "D27"]
[WhiteElo "2590"]
[BlackElo "2705"]
[Annotator "TA"]
[PlyCount "106"]
[EventDate "2024.05.13"]
[EventType "swiss"]
[EventCountry "UAE"]
[SourceTitle "playchess.com"]
[Source "ChessBase"]
[SourceQuality "1"]
[TimeControl "5400+30"]

{[%evp 16,106,19,13,26,25,33,29,45,40,41,34,31,25,37,33,44,26,39,32,58,40,51,27,42,25,45,46,45,31,53,27,37,17,23,10,9,10,9,12,8,10,12,0,0,0,0,0,0,0,0,0,0,0,0,0,0,0,0,0,0,0,0,0,0,0,0,0,0,0,0,0,0,0,0,0,0,0,0,0,0,0,0,0,0,0,0,0,0,0,0,0,0]} 1. d4 {[%emt 0:00:04]} d5 {[%emt 0:04:10]} 2. c4 {[%emt 0:00:07]} e6 {[%emt 0:03:50]} 3. Nf3 {[%emt 0:00:23]} dxc4 {[%emt 0:00:42]} 4. e3 {[%emt 0:01:55]} Nf6 {[%emt 0:01:14]} 5. Bxc4 {[%emt 0:00:07]} c5 {[%emt 0:00:28]} 6. O-O {[%emt 0:00:35]} a6 {[%emt 0:00:26]} 7. b3 {[%emt 0:01:43]} cxd4 {[%emt 0:01:25]} 8. Nxd4 {[%emt 0:00:28]} Be7 {[%emt 0:00:34]} 9. Bb2 {[%emt 0:00:14]} O-O {[%emt 0:00:23]} 10. Be2 {[%emt 0:05:48]} b5 {[%emt 0:05:12]} 11. a4 {[%emt 0:04:38]} bxa4 {[%emt 0:00:56] White has an edge.} 12. Rxa4 {[%emt 0:00:23]} Bd7 {[%emt 0:18:22]} 13. Rc4 {[%emt 0:13:25]} a5 {[%emt 0:03:37]} 14. Nd2 {[%emt 0:02:54]} Na6 {[%emt 0:01:21]} 15. Nc6 {[%emt 0:09:41]} Bxc6 {[%emt 0:01:45]} 16. Rxc6 {[%emt 0:00:14]} Nb4 {[%emt 0:13:56]} 17. Rc4 {[%emt 0:02:15]} h6 {[%emt 0:10:26]} 18. g3 {[%emt 0:14:17]} Qd7 {[%emt 0:06:47]} 19. Rd4 {[%emt 0:01:54]} Qa7 {[%emt 0:01:22]} 20. Nc4 {[%emt 0:03:23]} Nfd5 {[%emt 0:03:43]} 21. Bf3 {[%emt 0:03:36]} Rad8 {[%emt 0:05:00]} 22. Rd2 {[%emt 0:03:09]} Nb6 {[%emt 0:05:48]} 23. Rxd8 {[%emt 0:19:26]} Rxd8 {[%emt 0:00:14]} 24. Qe2 {[%emt 0:00:08] Hoping for Bd4.} Qa6 {[%emt 0:07:18]} 25. Nxb6 {[%emt 0:02:37]} Qxb6 {[%emt 0:00:05] The position is equal.} 26. Qc4 {[%emt 0:02:58]} Bf6 {[%emt 0:03:12]} 27. Bxf6 {[%emt 0:00:38]} gxf6 {[%emt 0:00:05]} 28. Ra1 {[%emt 0:01:25]} Nd3 {[%emt 0:00:48] Prevents Qf4.} 29. Qc3 {[%emt 0:05:39]} Ne5 {[%emt 0:00:13]} 30. Be2 {[%emt 0:00:31]} Rd5 {[%emt 0:01:11]} 31. Rc1 {[%emt 0:00:47]} Kg7 {[%emt 0:00:15]} 32. h4 {[%emt 0:00:21]} Qd6 {[%emt 0:01:07]} 33. Kf1 {[%emt 0:00:40]} Qb8 {[%emt 0:00:32]} 34. Rd1 {[%emt 0:00:34]} Qb7 {[%emt 0:00:26]} 35. Rxd5 {[%emt 0:00:18]} Qxd5 $11 {[%emt 0:00:04][%mdl 4096] Endgame. KQB-KQN} 36. Kg1 {[%emt 0:00:02] Repels Qh1+} Qd8 {[%emt 0:00:53]} 37. Kg2 {[%emt 0:00:46]} Qa8+ {[%emt 0:00:19]} 38. Kh2 {[%emt 0:00:24] Active counter play!} Qd8 {[%emt 0:00:31]} 39. Kg2 {[%emt 0:00:08]} Qb6 {[%emt 0:00:24]} 40. Kg1 {[%emt 0:00:28]} Nd7 {[%emt 0:00:30]} 41. Bc4 {[%emt 0:01:05]} Qc5 {[%emt 0:00:37] [#] And now ...Nb6 would win.} 42. Qd2 {[%emt 0:00:19]} Nb6 {[%emt 0:00:20]} 43. Be2 {[%emt 0:00:17]} Nd5 {[%emt 0:00:04]} 44. Bc4 {[%emt 0:00:27]} Nb6 {[%emt 0:01:06]} 45. Be2 {[%emt 0:00:02]} Nc8 {[%emt 0:00:11]} 46. Kg2 {[%emt 0:01:01]} Nd6 {[%emt 0:00:42]} 47. Bf3 {[%emt 0:00:29]} Qb6 {[%emt 0:00:42]} 48. Qc3 {[%emt 0:00:25]} Nf5 {[%emt 0:00:32]} 49. Qc4 {[%emt 0:01:07]} Ne7 {[%emt 0:00:19]} 50. Qg4+ {[%emt 0:00:18]} Kf8 {[%emt 0:00:39]} 51. Qf4 {[%emt 0:00:26][%csl LRf6,LRh6]} Ng8 {[%emt 0:00:21]} 52. Qc4 {[%emt 0:00:38]} Ne7 {[%emt 0:00:45]} 53. Qf4 {[%emt 0:00:12]} Kg7 {[%emt 0:00:19] Weighted Error Value: White=0.04 (flawless) /Black=0.02 (flawless) .  Inaccurate:     	White=1     	Black=1      OK:         	White=10    	Black=18     Best:        	---       	Black=1} 1/2-1/2

[Event "7th Sharjah Masters 2024"]
[Site "Sharjah"]
[Date "2024.05.15"]
[Round "2.15"]
[White "Esipenko, Andrey"]
[Black "Daneshvar, Bardiya"]
[Result "0-1"]
[ECO "B12"]
[WhiteElo "2704"]
[BlackElo "2582"]
[Annotator "TA"]
[PlyCount "153"]
[EventDate "2024.05.13"]
[EventType "swiss"]
[EventCountry "UAE"]
[SourceTitle "playchess.com"]
[Source "ChessBase"]
[SourceQuality "1"]
[TimeControl "5400+30"]

{[%evp 59,153,0,0,-22,0,0,0,0,0,0,30,31,99,56,63,62,60,52,48,29,34,-15,-15,-16,-16,-21,-16,-43,-45,-51,-44,-50,-8,-8,-8,-8,0,-466,-466,-468,-466,-1014,-1014,-999,-999,-992,-992,-985,-974,-934,-548,-29940,-29944,-29954,-29955,-29956,-29959,-29961,-29960,-29959,-29960,-29965,-29966,-29966,-29967,-29966,-29967,-29968,-29969,-29969,-29971,-29972,-29973,-29972,-29972,-29972,-29974,-29975,-29976,-29979,-29977,-29977,-29978,-29978,-29978,-29978,-29978,-29978,-29979,-29979,-29980,-29980,-29981,-29986,-29985,-29993]} 1. e4 {[%emt 0:00:05]} c6 {[%emt 0:00:08]} 2. d4 {[%emt 0:00:14]} d5 {[%emt 0:00:05]} 3. e5 {[%emt 0:00:15]} c5 {[%emt 0:00:05]} 4. Nf3 {[%emt 0:02:23]} cxd4 {[%emt 0:00:08]} 5. Qxd4 {[%emt 0:05:22]} Nc6 {[%emt 0:00:28]} 6. Qf4 {[%emt 0:00:07]} e6 {[%emt 0:00:33]} 7. Nc3 {[%emt 0:00:06]} Nb4 {[%emt 0:01:33]} 8. Bd3 {[%emt 0:00:26]} Nxd3+ {[%emt 0:06:05]} 9. cxd3 {[%emt 0:00:01]} Ne7 {[%emt 0:00:11]} 10. h4 {[%emt 0:00:45]} Ng6 {[%emt 0:06:33]} 11. Qg3 {[%emt 0:02:30]} h5 {[%emt 0:00:11]} 12. Bg5 {[%emt 0:13:16]} Qb6 {[%emt 0:03:02]} 13. O-O {[%emt 0:00:22]} Bd7 {[%emt 0:01:12]} 14. Rfc1 {[%emt 0:02:38]} Rc8 {[%emt 0:12:01]} 15. d4 {[%emt 0:25:16]} Bc6 {[%emt 0:15:06]} 16. Rc2 {[%emt 0:01:48]} Qa6 {[%emt 0:05:29]} 17. Nd1 {[%emt 0:05:05]} Qd3 {[%emt 0:10:38]} 18. Rac1 {[%emt 0:02:51]} a6 {[%emt 0:07:39]} 19. a3 {[%emt 0:02:04]} Qe4 {[%emt 0:04:06]} 20. Ne3 {[%emt 0:03:41]} Be7 {[%emt 0:01:00]} 21. Bxe7 {[%emt 0:06:16]} Kxe7 {[%emt 0:00:20]} 22. Qg5+ {[%emt 0:07:58]} f6 {[%emt 0:02:48]} 23. Qg3 {[%emt 0:00:08]} Kf7 {[%emt 0:00:13]} 24. Rc3 {[%emt 0:04:56]} Qf4 {[%emt 0:05:28]} 25. Qxf4 {[%emt 0:03:11]} Nxf4 {[%emt 0:00:01]} 26. R1c2 {[%emt 0:00:13]} Ke7 {[%emt 0:01:46]} 27. g3 {[%emt 0:06:30]} Ng6 {[%emt 0:00:05]} 28. exf6+ {[%emt 0:00:05]} gxf6 {[%emt 0:00:16]} 29. Ne1 {[%emt 0:00:07]} Kd6 {[%emt 0:03:11]} 30. f3 {[%emt 0:02:39]} Ne7 {[%emt 0:02:18]} 31. Kf2 {[%emt 0:00:12]} e5 {[%emt 0:02:07]} 32. Rd2 {[%emt 0:00:50]} Ba4 {[%emt 0:03:12]} 33. Rxc8 {[%emt 0:00:31]} Rxc8 {[%emt 0:00:03]} 34. g4 {[%emt 0:00:34]} hxg4 {[%emt 0:03:33]} 35. fxg4 {[%emt 0:00:09]} Ke6 {[%emt 0:00:17]} (35... Bc6 $14) 36. h5 {[%emt 0:01:23]} Rg8 {[%emt 0:00:04]} 37. Nf3 {[%emt 0:00:48]} Be8 {[%emt 0:00:40]} 38. Rd1 {[%emt 0:01:10]} Bf7 {[%emt 0:00:34]} 39. Re1 {[%emt 0:00:26]} Nc6 $1 {[%emt 0:00:19]} 40. Rd1 {[%emt 0:00:58]} (40. h6 $14 {was preferrable.}) 40... Nxd4 {[%emt 0:01:31]} 41. Nxd4+ {[%emt 0:00:19]} exd4 {[%emt 0:00:01]} 42. Rxd4 {[%emt 0:00:16]} Ke5 $1 {[%emt 0:00:01]} 43. Nf5 {[%emt 0:02:18]} Be6 {[%emt 0:01:09]} 44. Rb4 $1 {[%emt 0:00:11]} Bxf5 {[%emt 0:01:05]} 45. gxf5 {[%emt 0:00:01]} Rh8 {[%emt 0:00:21]} 46. Rxb7 {[%emt 0:00:47]} Rxh5 {[%emt 0:00:07]} 47. b4 {[%emt 0:00:40]} Rh2+ {[%emt 0:01:35]} 48. Ke1 $2 {[%emt 0:00:11][%mdl 8192]} (48. Kg3 $11 {and White stays safe.} Rc2 49. Ra7) 48... Ra2 $1 $19 {[%emt 0:00:34]} (48... Kxf5 49. Ra7 $11) 49. Ra7 {[%emt 0:00:02]} Rxa3 {[%emt 0:00:22]} 50. b5 {[%emt 0:00:02]} (50. Kd2 $142 Rb3 (50... Kxf5 51. Kc2 $17) 51. Rxa6) 50... a5 $19 {[%emt 0:00:32]} (50... Kxf5 51. bxa6 Ke5 52. Ra8 $11) 51. Kd2 {[%emt 0:00:12]} a4 {[%emt 0:00:42]} 52. b6 {[%emt 0:02:06]} Rb3 {[%emt 0:00:25]} (52... Kxf5 53. Ra5 Rb3 54. Rxd5+ Ke4 55. Ra5 $15) 53. Rxa4 {[%emt 0:00:46]} Rxb6 {[%emt 0:00:05]} 54. Ra5 {[%emt 0:00:35]} Rb3 {[%emt 0:00:39]} ({Stronger than} 54... Kxf5 55. Rxd5+ Ke4 56. Rd7 $11) 55. Ke2 {[%emt 0:00:15]} Ke4 {[%emt 0:00:12]} ({Not} 55... Kxf5 56. Rxd5+ Kg4 57. Rd6 $11) 56. Kd2 {[%emt 0:00:17]} d4 {[%emt 0:01:20]} ({Weaker is} 56... Kxf5 57. Rxd5+ Kg4 58. Rd7 $11) 57. Ra6 {[%emt 0:00:25]} Kxf5 {[%emt 0:00:07]} 58. Ra8 {[%emt 0:00:11]} Kf4 {[%emt 0:02:45]} 59. Rd8 {[%emt 0:00:29]} d3 {[%emt 0:00:19]} 60. Rd4+ {[%emt 0:01:20]} Kf3 {[%emt 0:00:35]} 61. Rd5 {[%emt 0:00:17]} Ke4 {[%emt 0:00:18]} 62. Rd8 {[%emt 0:00:25]} f5 {[%emt 0:00:39]} 63. Re8+ {[%emt 0:00:41]} Kf3 {[%emt 0:00:26]} 64. Rf8 {[%emt 0:00:18]} f4 {[%emt 0:00:06]} 65. Rf7 {[%emt 0:00:05]} Kg3 {[%emt 0:01:07]} 66. Rf8 {[%emt 0:00:38]} Ra3 {[%emt 0:00:05]} 67. Rf7 {[%emt 0:00:12]} f3 {[%emt 0:00:17]} 68. Ke3 {[%emt 0:00:44]} Kg2 {[%emt 0:00:14]} 69. Kd2 {[%emt 0:01:06]} f2 {[%emt 0:00:51]} 70. Rg7+ {[%emt 0:00:07]} Kf1 {[%emt 0:00:05]} 71. Rg8 {[%emt 0:00:40]} Ra2+ {[%emt 0:00:24]} 72. Kd1 {[%emt 0:00:05]} Re2 {[%emt 0:00:45]} 73. Rg7 {[%emt 0:00:10]} Re3 {[%emt 0:00:12]} 74. Kd2 {[%emt 0:00:15]} Rh3 {[%emt 0:00:05]} 75. Rg8 {[%emt 0:01:38]} Rh2 {[%emt 0:00:07]} 76. Rg3 {[%emt 0:00:52]} Rg2 {[%emt 0:00:13]} 77. Kc3 {[%emt 0:01:05]} 0-1

[Event "7th Sharjah Masters 2024"]
[Site "Sharjah"]
[Date "2024.05.15"]
[Round "2.16"]
[White "Sevian, Samuel"]
[Black "Erdogmus, Yagiz Kaan"]
[Result "1/2-1/2"]
[ECO "D13"]
[WhiteElo "2699"]
[BlackElo "2554"]
[Annotator "RC"]
[PlyCount "72"]
[EventDate "2024.05.13"]
[EventType "swiss"]
[EventCountry "UAE"]
[SourceTitle "playchess.com"]
[Source "ChessBase"]
[SourceQuality "1"]
[TimeControl "5400+30"]

1. d4 {[%emt 0:02:38]} d5 {[%emt 0:00:07]} 2. Nf3 {[%emt 0:00:35]} c5 {[%emt 0:00:18]} 3. c3 {[%emt 0:11:48]} e6 {[%emt 0:11:01]} 4. Bf4 {[%emt 0:06:31]} Bd6 {[%emt 0:09:33]} 5. e3 {[%emt 0:03:22]} Bxf4 {[%emt 0:05:51]} 6. exf4 {[%emt 0:00:11]} cxd4 {[%emt 0:00:41]} 7. cxd4 {[%emt 0:09:49]} Nf6 {[%emt 0:00:57]} 8. Nc3 {[%emt 0:00:47]} O-O {[%emt 0:01:13]} 9. Bd3 {[%emt 0:00:23]} Nc6 {[%emt 0:04:03]} 10. a3 {[%emt 0:00:30]} Bd7 {[%emt 0:01:32]} 11. O-O {[%emt 0:00:40]} Rc8 {[%emt 0:00:39]} 12. Rc1 {[%emt 0:04:52]} Na5 {[%emt 0:06:46]} 13. Ne5 {[%emt 0:01:20]} g6 {[%emt 0:06:14]} 14. g3 {[%emt 0:04:55]} Nc4 {[%emt 0:09:17]} 15. Qe2 {[%emt 0:02:26]} b5 {[%emt 0:02:17]} 16. Rfd1 {[%emt 0:03:03]} a5 {[%emt 0:06:13]} 17. Bxc4 {[%emt 0:07:45]} bxc4 {[%emt 0:02:26]} 18. Kg2 {[%emt 0:04:39]} Nh5 {[%emt 0:09:46]} 19. Ng4 {[%emt 0:09:45]} Ng7 {[%emt 0:04:04]} 20. Ne3 {[%emt 0:03:20]} Rb8 {[%emt 0:01:36]} 21. Rd2 {[%emt 0:00:41]} Nf5 {[%emt 0:02:06]} 22. Re1 {[%emt 0:03:21]} Nxe3+ {[%emt 0:02:26]} 23. Qxe3 {[%emt 0:02:39]} Rb3 {[%emt 0:00:56]} 24. Qf3 {[%emt 0:01:03]} Qf6 {[%emt 0:01:17]} 25. Qd1 {[%emt 0:03:57]} Rfb8 {[%emt 0:00:23]} 26. Qc1 {[%emt 0:00:15]} Qd8 {[%emt 0:01:00]} 27. Re5 {[%emt 0:00:59]} Qb6 {[%emt 0:01:02]} 28. Ree2 {[%emt 0:01:19]} Qd6 {[%emt 0:00:10]} 29. Rc2 {[%emt 0:01:29]} R8b7 {[%emt 0:02:18]} 30. h3 {[%emt 0:01:32]} Kg7 {[%emt 0:02:27]} 31. Qe3 {[%emt 0:00:34]} Qb8 {[%emt 0:00:32]} 32. Qc1 {[%emt 0:05:09]} Qd6 {[%emt 0:01:44]} 33. Rcd2 {[%emt 0:00:19]} Qb8 {[%emt 0:00:39]} 34. Kh2 {[%emt 0:00:19]} Qd6 {[%emt 0:00:19]} 35. Kg2 {[%emt 0:01:25]} Qb8 {[%emt 0:00:29]} 36. Kh2 {[%emt 0:00:37]} Qd6 {[%emt 0:00:15]} 1/2-1/2

[Event "7th Sharjah Masters 2024"]
[Site "Sharjah"]
[Date "2024.05.15"]
[Round "2.17"]
[White "Kadric, Denis"]
[Black "Narayanan S L"]
[Result "1/2-1/2"]
[ECO "C54"]
[WhiteElo "2558"]
[BlackElo "2695"]
[Annotator "TA"]
[PlyCount "57"]
[EventDate "2024.05.13"]
[EventType "swiss"]
[EventCountry "UAE"]
[SourceTitle "playchess.com"]
[Source "ChessBase"]
[SourceQuality "1"]
[TimeControl "5400+30"]

{[%evp 19,57,2,0,0,0,0,28,20,36,31,24,14,43,42,32,16,12,0,18,10,19,12,24,31,39,8,18,12,16,28,18,10,7,8,33,24,58,21,86,69]} 1. e4 {[%emt 0:00:03]} e5 {[%emt 0:00:06]} 2. Nf3 {[%emt 0:00:08]} Nc6 {[%emt 0:00:05]} 3. Bc4 {[%emt 0:00:07]} Bc5 {[%emt 0:00:10]} 4. c3 {[%emt 0:00:12]} Nf6 {[%emt 0:00:06]} 5. d3 {[%emt 0:00:02]} d6 {[%emt 0:00:14]} 6. b4 {[%emt 0:00:27]} Bb6 {[%emt 0:00:06]} 7. a4 {[%emt 0:00:01]} a5 {[%emt 0:00:08]} 8. b5 {[%emt 0:00:02]} Ne7 {[%emt 0:00:06]} 9. O-O {[%emt 0:00:07]} O-O {[%emt 0:00:06]} 10. Nbd2 {[%emt 0:00:02]} Ng6 {[%emt 0:00:20]} 11. d4 {[%emt 0:00:05]} Bg4 {[%emt 0:02:10]} 12. Qc2 {[%emt 0:00:04]} exd4 {[%emt 0:07:16]} 13. cxd4 {[%emt 0:01:48] White has an edge.} d5 {[%emt 0:00:19]} 14. exd5 {[%emt 0:01:40]} Nxd5 {[%emt 0:00:13]} 15. Qb3 {[%emt 0:06:11]} Be6 {[%emt 0:04:32]} 16. Ba3 {[%emt 0:03:49]} Re8 {[%emt 0:00:07]} 17. Rae1 {[%emt 0:09:27]} h6 {[%emt 0:10:29]} 18. Re4 {[%emt 0:08:16]} c6 {[%emt 0:04:27]} 19. Rfe1 {[%emt 0:01:43]} Bc7 {[%emt 0:06:12]} 20. g3 {[%emt 0:14:29]} Bd6 {[%emt 0:05:27]} 21. Bc5 {[%emt 0:00:15]} Nf8 {[%emt 0:18:47]} 22. Qa3 {[%emt 0:06:27]} Bxc5 {[%emt 0:00:19]} 23. dxc5 {[%emt 0:00:02]} Nf6 {[%emt 0:04:51]} 24. R4e3 {[%emt 0:01:52]} Qd7 {[%emt 0:05:22]} 25. Bxe6 {[%emt 0:12:16]} Rxe6 {[%emt 0:01:00]} 26. Nc4 {[%emt 0:01:20] [#] Hoping for Nb6.} Rxe3 {[%emt 0:00:32]} (26... cxb5 $2 27. Rxe6 b4 (27... Nxe6 $2 28. Nb6 $18) 28. Qc1 Nxe6 29. Nb6 $18) 27. Rxe3 {[%emt 0:00:24]} Nd5 {[%emt 0:01:09]} (27... cxb5 $2 28. Nb6 Qd1+ (28... b4 $2 29. Qb3 $18) 29. Re1 $18) 28. Rd3 {[%emt 0:04:23] Nb6 is the strong threat.} Qe7 {[%emt 0:02:41]} (28... cxb5 $2 {perishes.} 29. Ne3 (29. Nb6 b4 $16) 29... Re8 (29... b4 $2 30. Qa1 $18) 30. Nxd5 $18 (30. Rxd5 Rxe3 31. Qa2 Re2 $11)) (28... Qh3 $11) 29. Nd6 {[%emt 0:06:09] Weighted Error Value: White=0.07 (flawless) /Black=0.17 (very precise) .  Mistake:       	---       	Black=1      Inaccurate:     	White=2     	Black=3      OK:         	White=7     	Black=5      Best:        	White=1     	---} 1/2-1/2